[Event "Velká cena Novohradska - A"]
[Site "Nové Hrady, Czech Republic"]
[Date "2024.10.12"]
[Round "3.6"]
[White "Hejda, Ondřej"]
[Black "Dudarec, Elias"]
[Result "0-1"]
[TimeControl "2x20min+10s/tah"]
[WhiteFideId "23713623"]
[BlackFideId "23714930"]
[WhiteElo "1702"]
[BlackElo "1588"]

1. e4 {[%clk 00:20:18]} {[%emt 00:00:02]} e6 {[%clk 00:20:12]} {[%emt
00:00:08]} 2. d4 {[%clk 00:20:24]} {[%emt 00:00:04]} d5 {[%emt 00:00:03]} 3.
exd5 {[%clk 00:20:28]} {[%emt 00:00:04]} exd5 {[%clk 00:20:30]} 4. Nf3 {[%clk
00:20:18]} {[%emt 00:00:22]} Nf6 {[%clk 00:20:37]} {[%emt 00:00:02]} 5. c3
{[%clk 00:20:09]} {[%emt 00:00:20]} Bd6 {[%clk 00:20:44]} {[%emt 00:00:02]} 6.
Bg5 {[%clk 00:20:05]} {[%emt 00:00:14]} O-O {[%clk 00:20:45]} {[%emt 00:00:08]}
7. Be2 {[%clk 00:20:02]} {[%emt 00:00:14]} Bf5 {[%clk 00:20:45]} {[%emt
00:00:10]} 8. O-O {[%clk 00:19:53]} {[%emt 00:00:18]} Nbd7 {[%clk 00:20:53]}
{[%emt 00:00:03]} 9. Nbd2 {[%clk 00:19:49]} {[%emt 00:00:15]} c6 {[%clk
00:20:23]} {[%emt 00:00:40]} 10. Qb3 {[%clk 00:19:02]} {[%emt 00:00:57]} Re8
{[%clk 00:19:08]} {[%emt 00:01:24]} 11. Rfe1 {[%clk 00:18:39]} {[%emt
00:00:32]} Qc7 {[%clk 00:19:13]} {[%emt 00:00:06]} 12. Rac1 {[%clk 00:17:45]}
{[%emt 00:01:04]} b5 {[%clk 00:18:34]} {[%emt 00:00:49]} 13. a4 {[%clk
00:16:37]} {[%emt 00:01:19]} a6 {[%clk 00:18:14]} {[%emt 00:00:29]} 14. Ra1
{[%clk 00:15:48]} {[%emt 00:00:59]} h6 {[%clk 00:15:57]} {[%emt 00:02:27]} 15.
Bh4 {[%clk 00:15:26]} {[%emt 00:00:30]} Ne4 {[%clk 00:15:47]} {[%emt 00:00:22]}
16. Nxe4 {[%clk 00:14:22]} {[%emt 00:01:14]} dxe4 {[%clk 00:15:24]} {[%emt
00:00:33]} 17. Nd2 {[%clk 00:13:48]} {[%emt 00:00:44]} Bxh2+ {[%clk 00:15:24]}
{[%emt 00:00:09]} 18. Kh1 {[%clk 00:13:56]} {[%emt 00:00:03]} Bf4 {[%clk
00:15:18]} {[%emt 00:00:16]} 19. Qc2 {[%clk 00:13:30]} {[%emt 00:00:36]} g5
{[%clk 00:09:15]} {[%emt 00:06:14]} 20. Bg3 {[%clk 00:12:12]} {[%emt 00:01:27]}
Bxg3 {[%clk 00:09:15]} {[%emt 00:00:10]} 21. fxg3 {[%clk 00:12:20]} {[%emt
00:00:02]} Qxg3 {[%clk 00:09:11]} {[%emt 00:00:14]} 22. Rf1 {[%clk 00:12:08]}
{[%emt 00:00:23]} Qh4+ {[%clk 00:08:55]} {[%emt 00:00:25]} 23. Kg1 {[%clk
00:12:13]} {[%emt 00:00:04]} Bg6 {[%clk 00:08:27]} {[%emt 00:00:39]} 24. c4
{[%clk 00:11:18]} {[%emt 00:01:06]} e3 {[%clk 00:08:15]} {[%emt 00:00:21]} 25.
Nf3 {[%clk 00:11:18]} {[%emt 00:00:10]} Qf2+ {[%clk 00:07:55]} {[%emt
00:00:30]} 0-1

[Event "Velká cena Novohradska - A"]
[Site "Nové Hrady, Czech Republic"]
[Date "2024.10.12"]
[Round "3.7"]
[White "Mountassir, Karim"]
[Black "Ponomarenko, Marko"]
[Result "1/2-1/2"]
[TimeControl "2x20min+10s/tah"]
[WhiteFideId "23746327"]
[BlackFideId "23777931"]
[WhiteElo "1614"]
[BlackElo "1498"]

1. e4 {[%clk 00:20:19]} {[%emt 00:00:02]} e5 {[%clk 00:20:19]} 2. Nf3 {[%clk
00:20:27]} {[%emt 00:00:02]} Nc6 {[%clk 00:20:27]} {[%emt 00:00:02]} 3. Bc4
{[%clk 00:20:36]} {[%emt 00:00:01]} Bc5 {[%clk 00:20:35]} {[%emt 00:00:02]} 4.
d3 {[%clk 00:20:43]} {[%emt 00:00:03]} Nf6 {[%clk 00:20:44]} {[%emt 00:00:01]}
5. Bg5 {[%clk 00:20:49]} {[%emt 00:00:05]} d6 {[%clk 00:20:45]} {[%emt
00:00:08]} 6. h3 {[%clk 00:20:47]} {[%emt 00:00:12]} Na5 {[%clk 00:20:43]}
{[%emt 00:00:12]} 7. Bb3 {[%clk 00:20:34]} {[%emt 00:00:23]} O-O {[%clk
00:20:29]} {[%emt 00:00:23]} 8. Nc3 {[%clk 00:20:38]} {[%emt 00:00:07]} c6
{[%clk 00:20:25]} {[%emt 00:00:12]} 9. O-O {[%clk 00:20:16]} {[%emt 00:00:34]}
Nxb3 {[%clk 00:19:50]} {[%emt 00:00:45]} 10. axb3 {[%clk 00:20:23]} {[%emt
00:00:03]} Be6 {[%clk 00:19:52]} {[%emt 00:00:08]} 11. Ne2 {[%clk 00:20:17]}
{[%emt 00:00:15]} d5 {[%clk 00:19:37]} {[%emt 00:00:25]} 12. Nxe5 {[%clk
00:20:05]} {[%emt 00:00:22]} dxe4 {[%clk 00:19:32]} {[%emt 00:00:16]} 13. dxe4
{[%clk 00:19:56]} {[%emt 00:00:18]} Qxd1 {[%clk 00:19:02]} {[%emt 00:00:41]} 14.
Raxd1 {[%clk 00:19:28]} {[%emt 00:00:38]} Nxe4 {[%clk 00:18:50]} {[%emt
00:00:22]} 15. Bh4 {[%clk 00:18:59]} {[%emt 00:00:38]} f6 {[%clk 00:18:35]}
{[%emt 00:00:26]} 16. Nd7 {[%clk 00:18:34]} {[%emt 00:00:35]} Bxd7 {[%clk
00:18:20]} {[%emt 00:00:26]} 17. Rxd7 {[%clk 00:18:42]} {[%emt 00:00:01]} b6
{[%clk 00:17:43]} {[%emt 00:00:47]} 18. Ng3 {[%clk 00:18:10]} {[%emt 00:00:42]}
Nxg3 {[%clk 00:17:03]} {[%emt 00:00:50]} 19. Bxg3 {[%emt 00:00:04]} Rfe8 {[%clk
00:16:32]} {[%emt 00:00:39]} 20. Rd2 {[%clk 00:17:06]} {[%emt 00:01:21]} Re6
{[%clk 00:16:07]} {[%emt 00:00:35]} 21. Rfd1 {[%clk 00:16:59]} {[%emt
00:00:17]} Rae8 {[%clk 00:15:38]} {[%emt 00:00:40]} 22. Kf1 {[%clk 00:16:55]}
{[%emt 00:00:14]} Kf7 {[%clk 00:15:23]} {[%emt 00:00:26]} 23. Bd6 {[%clk
00:16:37]} {[%emt 00:00:27]} Bxd6 {[%clk 00:15:17]} {[%emt 00:00:16]} 24. Rxd6
{[%clk 00:16:45]} Rxd6 {[%clk 00:14:57]} {[%emt 00:00:32]} 25. Rxd6 {[%clk
00:16:52]} {[%emt 00:00:02]} c5 {[%clk 00:15:00]} {[%emt 00:00:08]} 26. Rd7+
{[%clk 00:16:57]} {[%emt 00:00:06]} Re7 {[%clk 00:15:08]} 27. Rxe7+ {[%clk
00:13:17]} {[%emt 00:03:50]} Kxe7 {[%clk 00:15:17]} {[%emt 00:00:02]} 28. Ke2
{[%clk 00:13:26]} Kd6 {[%clk 00:15:12]} {[%emt 00:00:15]} 29. Kd3 {[%clk
00:13:31]} {[%emt 00:00:05]} Kd5 {[%clk 00:15:19]} {[%emt 00:00:03]} 30. c4+
{[%clk 00:12:20]} {[%emt 00:01:21]} Ke5 {[%clk 00:15:16]} {[%emt 00:00:12]} 31.
Kc3 {[%clk 00:12:25]} {[%emt 00:00:05]} a5 {[%clk 00:15:19]} {[%emt 00:00:08]}
32. Kd3 {[%clk 00:12:15]} {[%emt 00:00:20]} h5 {[%clk 00:15:25]} {[%emt
00:00:04]} 33. h4 {[%clk 00:12:13]} {[%emt 00:00:12]} g5 {[%clk 00:15:25]}
{[%emt 00:00:10]} 34. hxg5 {[%clk 00:11:49]} {[%emt 00:00:34]} fxg5 {[%clk
00:15:33]} {[%emt 00:00:02]} 35. Ke3 {[%clk 00:11:55]} {[%emt 00:00:03]} g4
{[%clk 00:15:37]} {[%emt 00:00:06]} 36. g3 {[%clk 00:11:49]} {[%emt 00:00:17]}
Kf5 {[%clk 00:15:31]} {[%emt 00:00:16]} 37. Kd3 {[%clk 00:11:45]} {[%emt
00:00:15]} Ke5 {[%clk 00:15:39]} {[%emt 00:00:01]} 38. Ke3 {[%clk 00:11:53]}
{[%emt 00:00:01]} Kf5 {[%clk 00:15:48]} 39. Kd3 {[%clk 00:12:02]} 1/2-1/2

[Event "Velká cena Novohradska - A"]
[Site "Nové Hrady, Czech Republic"]
[Date "2024.10.12"]
[Round "4.1"]
[White "Šebesta, Marek"]
[Black "Garabik, Marek"]
[Result "0-1"]
[TimeControl "2x20min+10s/tah"]
[WhiteFideId "23765119"]
[BlackFideId "23717742"]
[WhiteElo "1707"]
[BlackElo "1925"]

1. e4 {[%clk 00:20:19]} {[%emt 00:32:22]} e6 {[%clk 00:20:19]} 2. d4 {[%clk
00:20:28]} {[%emt 00:00:02]} d5 {[%clk 00:20:28]} {[%emt 00:00:01]} 3. e5
{[%clk 00:20:37]} c5 {[%clk 00:20:37]} 4. c3 {[%clk 00:20:46]} Bd7 {[%clk
00:20:46]} 5. Nf3 {[%clk 00:20:48]} {[%emt 00:00:12]} Qb6 {[%clk 00:20:55]}
{[%emt 00:00:02]} 6. a3 {[%clk 00:20:32]} {[%emt 00:00:26]} Bb5 {[%clk
00:20:52]} {[%emt 00:00:13]} 7. Bd3 {[%clk 00:19:08]} {[%emt 00:01:32]} Qa6
{[%clk 00:20:47]} {[%emt 00:00:17]} 8. Bxb5+ {[%clk 00:18:16]} {[%emt
00:01:01]} Qxb5 {[%clk 00:20:56]} 9. Qe2 {[%clk 00:18:07]} {[%emt 00:00:20]}
Qxe2+ {[%clk 00:21:05]} 10. Kxe2 {[%clk 00:18:15]} cxd4 {[%clk 00:21:11]}
{[%emt 00:00:07]} 11. cxd4 {[%clk 00:18:22]} {[%emt 00:00:03]} Nd7 {[%clk
00:21:18]} {[%emt 00:00:04]} 12. b4 {[%clk 00:16:57]} {[%emt 00:01:35]} Ne7
{[%clk 00:21:19]} {[%emt 00:00:09]} 13. Bb2 {[%clk 00:17:02]} {[%emt 00:00:05]}
Rc8 {[%clk 00:21:26]} {[%emt 00:00:02]} 14. Nc3 {[%clk 00:16:27]} {[%emt
00:00:46]} Nc6 {[%clk 00:21:28]} {[%emt 00:00:08]} 15. Na4 {[%clk 00:16:05]}
{[%emt 00:00:32]} Be7 {[%clk 00:20:39]} {[%emt 00:00:59]} 16. Rac1 {[%clk
00:15:22]} {[%emt 00:00:51]} O-O {[%clk 00:20:30]} {[%emt 00:00:20]} 17. Nc5
{[%clk 00:15:06]} {[%emt 00:00:27]} Nxc5 {[%clk 00:19:56]} {[%emt 00:00:44]} 18.
bxc5 {[%clk 00:15:14]} Na5 {[%clk 00:20:01]} {[%emt 00:00:07]} 19. Nd2 {[%clk
00:15:23]} b6 {[%clk 00:20:07]} {[%emt 00:00:04]} 20. cxb6 {[%clk 00:14:52]}
{[%emt 00:00:40]} axb6 {[%clk 00:20:15]} {[%emt 00:00:03]} 21. f4 {[%clk
00:14:36]} {[%emt 00:00:26]} b5 {[%clk 00:19:09]} {[%emt 00:01:16]} 22. Rxc8
{[%clk 00:13:30]} {[%emt 00:01:16]} Rxc8 {[%clk 00:19:17]} 23. Rc1 {[%clk
00:13:39]} {[%emt 00:00:02]} Rxc1 {[%clk 00:18:27]} {[%emt 00:01:01]} 24. Bxc1
{[%clk 00:13:48]} Kf8 {[%clk 00:18:36]} 25. Kd3 {[%clk 00:13:12]} {[%emt
00:00:46]} Ke8 {[%clk 00:18:36]} {[%emt 00:00:11]} 26. Kc3 {[%clk 00:12:22]}
{[%emt 00:01:00]} Kd7 {[%clk 00:18:45]} 27. Nb3 {[%clk 00:11:58]} {[%emt
00:00:35]} Nc4 {[%clk 00:18:53]} {[%emt 00:00:02]} 28. Nc5+ {[%clk 00:11:33]}
{[%emt 00:00:36]} Bxc5 {[%clk 00:17:47]} {[%emt 00:01:16]} 29. dxc5 {[%clk
00:11:42]} Kc6 {[%clk 00:17:56]} 30. Kb4 {[%clk 00:11:50]} f6 {[%clk 00:17:50]}
{[%emt 00:00:17]} 31. g4 {[%clk 00:11:16]} {[%emt 00:00:45]} fxe5 {[%clk
00:17:54]} {[%emt 00:00:06]} 32. fxe5 {[%emt 00:00:18]} Nxe5 {[%clk 00:17:59]}
{[%emt 00:00:02]} 33. g5 {[%clk 00:11:04]} {[%emt 00:00:17]} Nd3+ {[%clk
00:18:00]} {[%emt 00:00:10]} 0-1

[Event "Velká cena Novohradska - A"]
[Site "Nové Hrady, Czech Republic"]
[Date "2024.10.12"]
[Round "4.3"]
[White "Postl, František"]
[Black "Čech, Nicolas"]
[Result "1-0"]
[TimeControl "2x20min+10s/tah"]
[WhiteFideId "23709448"]
[BlackFideId "23764228"]
[WhiteElo "1514"]
[BlackElo "1626"]

1. e4 {[%clk 00:20:19]} c5 {[%clk 00:20:18]} {[%emt 00:00:02]} 2. Nf3 {[%clk
00:20:28]} {[%emt 00:00:01]} Nc6 {[%clk 00:20:21]} {[%emt 00:00:08]} 3. d4
{[%clk 00:20:35]} {[%emt 00:00:03]} cxd4 {[%clk 00:20:29]} 4. c3 {[%clk
00:20:44]} dxc3 {[%clk 00:20:35]} {[%emt 00:00:05]} 5. Bc4 {[%clk 00:20:53]}
cxb2 {[%clk 00:19:46]} {[%emt 00:00:59]} 6. Bxb2 {[%clk 00:21:01]} {[%emt
00:00:01]} e6 {[%clk 00:19:39]} {[%emt 00:00:18]} 7. O-O {[%clk 00:20:49]}
{[%emt 00:00:22]} d6 {[%clk 00:18:18]} {[%emt 00:01:30]} 8. Qc2 {[%clk
00:20:23]} {[%emt 00:00:37]} e5 {[%clk 00:16:00]} {[%emt 00:02:28]} 9. Rd1
{[%clk 00:20:22]} {[%emt 00:00:11]} Qc7 {[%clk 00:15:36]} {[%emt 00:00:34]} 10.
Ng5 {[%clk 00:20:02]} {[%emt 00:00:31]} Be6 {[%clk 00:13:36]} {[%emt 00:02:10]}
11. Nxe6 {[%clk 00:19:47]} {[%emt 00:00:24]} fxe6 {[%clk 00:13:38]} {[%emt
00:00:08]} 12. Bxe6 {[%clk 00:19:40]} {[%emt 00:00:17]} Qe7 {[%clk 00:12:37]}
{[%emt 00:01:11]} 13. Bd5 {[%clk 00:19:23]} {[%emt 00:00:26]} Qd7 {[%clk
00:12:25]} {[%emt 00:00:23]} 14. Qe2 {[%clk 00:18:10]} {[%emt 00:01:23]} Nf6
{[%clk 00:12:02]} {[%emt 00:00:32]} 15. Nc3 {[%clk 00:17:47]} {[%emt 00:00:33]}
Nd4 {[%clk 00:10:12]} {[%emt 00:02:01]} 16. Qd3 {[%clk 00:16:42]} {[%emt
00:01:16]} Be7 {[%clk 00:08:57]} {[%emt 00:01:25]} 17. Qg3 {[%clk 00:16:23]}
{[%emt 00:00:27]} Qg4 {[%clk 00:07:06]} {[%emt 00:02:02]} 18. Qxg4 {[%clk
00:15:41]} {[%emt 00:00:52]} Nxg4 {[%clk 00:07:14]} {[%emt 00:00:02]} 19. f3
{[%clk 00:15:22]} {[%emt 00:00:29]} Ne3 {[%clk 00:07:04]} {[%emt 00:00:20]} 20.
Rd2 {[%clk 00:15:30]} Nxd5 {[%clk 00:06:50]} {[%emt 00:00:25]} 21. Nxd5 {[%clk
00:15:37]} {[%emt 00:00:03]} Ne6 {[%clk 00:06:07]} {[%emt 00:00:52]} 22. Rc1
{[%clk 00:15:14]} {[%emt 00:00:34]} Kd7 {[%clk 00:05:02]} {[%emt 00:01:15]} 23.
Rcd1 {[%clk 00:14:17]} {[%emt 00:01:07]} Bg5 {[%clk 00:01:31]} {[%emt
00:03:41]} 24. Rd3 {[%clk 00:13:35]} {[%emt 00:00:52]} Nc5 {[%clk 00:01:28]}
{[%emt 00:00:14]} 25. Rc3 {[%clk 00:13:24]} {[%emt 00:00:20]} b6 {[%clk
00:00:54]} {[%emt 00:00:44]} 26. Ba3 {[%clk 00:13:07]} {[%emt 00:00:27]} Rac8
{[%clk 00:00:40]} {[%emt 00:00:23]} 27. Bxc5 {[%clk 00:12:49]} {[%emt
00:00:29]} bxc5 {[%clk 00:00:46]} {[%emt 00:00:04]} 28. Ra3 {[%clk 00:12:55]}
{[%emt 00:00:04]} Ra8 {[%clk 00:00:35]} {[%emt 00:00:21]} 29. Rb1 {[%clk
00:12:58]} {[%emt 00:00:07]} Rhb8 {[%clk 00:00:32]} {[%emt 00:00:13]} 30. Rxb8
{[%clk 00:13:02]} {[%emt 00:00:06]} Rxb8 {[%clk 00:00:40]} {[%emt 00:00:02]} 31.
Rxa7+ {[%clk 00:13:08]} {[%emt 00:00:04]} Ke6 {[%clk 00:00:21]} {[%emt
00:00:29]} 32. Rxg7 {[%clk 00:12:59]} {[%emt 00:00:18]} Rb1+ {[%clk 00:00:30]}
33. Kf2 {[%clk 00:13:08]} {[%emt 00:00:03]} Rb2+ {[%clk 00:00:21]} {[%emt
00:00:19]} 34. Kg3 {[%clk 00:13:16]} {[%emt 00:00:02]} h6 {[%clk 00:00:30]} 35.
h4 {[%clk 00:12:58]} {[%emt 00:00:29]} Bd8 {[%clk 00:00:26]} {[%emt 00:00:14]}
36. Rg6+ {[%clk 00:13:02]} {[%emt 00:00:05]} Kd7 {[%clk 00:00:33]} {[%emt
00:00:04]} 37. Rxh6 {[%clk 00:13:05]} {[%emt 00:00:07]} Rxa2 {[%clk 00:00:39]}
{[%emt 00:00:04]} 38. h5 {[%clk 00:12:49]} {[%emt 00:00:26]} Ra1 {[%clk
00:00:28]} {[%emt 00:00:21]} 39. Rh7+ {[%clk 00:12:51]} {[%emt 00:00:08]} Ke6
{[%clk 00:00:34]} {[%emt 00:00:04]} 40. Kh2 {[%clk 00:12:45]} {[%emt 00:00:15]}
Bg5 {[%clk 00:00:27]} {[%emt 00:00:18]} 41. h6 {[%clk 00:12:50]} {[%emt
00:00:05]} Bf4+ {[%clk 00:00:31]} {[%emt 00:00:06]} 42. Nxf4+ {[%clk 00:12:01]}
{[%emt 00:00:59]} exf4 {[%clk 00:00:40]} {[%emt 00:00:02]} 43. Rg7 {[%clk
00:12:04]} {[%emt 00:00:06]} Kf6 {[%clk 00:00:38]} {[%emt 00:00:12]} 44. Rg4
{[%clk 00:12:10]} {[%emt 00:00:05]} c4 {[%clk 00:00:19]} {[%emt 00:00:28]} 45.
h7 {[%emt 00:00:24]} 1-0

[Event "Velká cena Novohradska - A"]
[Site "Nové Hrady, Czech Republic"]
[Date "2024.10.12"]
[Round "4.4"]
[White "Dudarec, Elias"]
[Black "Borecký, Andrej"]
[Result "1-0"]
[TimeControl "2x20min+10s/tah"]
[WhiteFideId "23714930"]
[BlackFideId "23752670"]
[WhiteElo "1588"]
[BlackElo "1778"]

1. e4 {[%clk 00:20:11]} {[%emt 00:00:10]} c5 {[%clk 00:19:02]} {[%emt
00:01:17]} 2. Nf3 {[%clk 00:20:13]} {[%emt 00:00:08]} Nc6 {[%clk 00:19:02]}
{[%emt 00:00:10]} 3. d4 {[%clk 00:20:20]} {[%emt 00:00:03]} cxd4 {[%clk
00:19:10]} {[%emt 00:00:02]} 4. Nxd4 {[%clk 00:20:28]} {[%emt 00:00:03]} Nf6
{[%clk 00:19:16]} {[%emt 00:00:02]} 5. Nc3 {[%clk 00:20:34]} {[%emt 00:00:06]}
e5 {[%clk 00:19:20]} {[%emt 00:00:03]} 6. Nxc6 {[%clk 00:20:32]} {[%emt
00:00:14]} bxc6 {[%clk 00:19:07]} {[%emt 00:00:22]} 7. Bd3 {[%clk 00:20:40]}
{[%emt 00:00:04]} Bb4 {[%clk 00:18:52]} {[%emt 00:00:25]} 8. O-O {[%clk
00:19:58]} {[%emt 00:00:52]} Bxc3 {[%clk 00:18:15]} {[%emt 00:00:46]} 9. bxc3
{[%clk 00:20:03]} {[%emt 00:00:06]} h6 {[%clk 00:17:45]} {[%emt 00:00:39]} 10.
f4 {[%clk 00:19:54]} {[%emt 00:00:20]} exf4 {[%clk 00:16:27]} {[%emt 00:01:28]}
11. Ba3 {[%clk 00:17:59]} {[%emt 00:02:05]} Qa5 {[%clk 00:15:01]} {[%emt
00:01:36]} 12. Bd6 {[%clk 00:16:13]} {[%emt 00:01:55]} Qxc3 {[%clk 00:13:21]}
{[%emt 00:01:51]} 13. Kh1 {[%clk 00:14:50]} {[%emt 00:01:32]} Qd4 {[%clk
00:12:09]} {[%emt 00:01:22]} 14. Bxf4 {[%clk 00:12:49]} {[%emt 00:02:11]} d6
{[%clk 00:09:42]} {[%emt 00:02:38]} 15. Bxd6 {[%clk 00:11:03]} {[%emt
00:01:55]} Bg4 {[%clk 00:07:15]} {[%emt 00:02:38]} 16. Qe1 {[%clk 00:08:45]}
{[%emt 00:02:27]} Qxd6 {[%clk 00:05:19]} {[%emt 00:02:06]} 17. e5 {[%clk
00:08:51]} {[%emt 00:00:04]} Qe6 {[%clk 00:05:15]} {[%emt 00:00:14]} 18. exf6
{[%clk 00:08:47]} {[%emt 00:00:14]} Qxe1 {[%clk 00:04:46]} {[%emt 00:00:39]} 19.
Raxe1+ {[%clk 00:08:52]} {[%emt 00:00:06]} Kf8 {[%clk 00:04:54]} 20. Re7 {[%clk
00:04:47]} {[%emt 00:04:17]} Be6 {[%clk 00:03:50]} {[%emt 00:01:14]} 21. Rc7
{[%clk 00:04:49]} {[%emt 00:00:07]} gxf6 {[%clk 00:01:25]} {[%emt 00:02:36]} 22.
Rxf6 {[%clk 00:04:46]} {[%emt 00:00:12]} Rg8 {[%clk 00:00:16]} {[%emt
00:01:20]} 23. Be4 {[%emt 00:02:18]} Rh8 {[%emt 00:00:06]} 24. Bd3 {[%emt
00:00:43]} Rg8 {[%emt 00:00:01]} 25. Be4 Rd8 {[%emt 00:00:04]} 26. h3 {[%emt
00:00:04]} Bxh3 27. gxh3 {[%emt 00:00:02]} Rd1+ {[%emt 00:00:02]} 1-0

[Event "Velká cena Novohradska - A"]
[Site "Nové Hrady, Czech Republic"]
[Date "2024.10.12"]
[Round "4.5"]
[White "Rendl, Luboš"]
[Black "Mountassir, Karim"]
[Result "1-0"]
[TimeControl "2x20min+10s/tah"]
[WhiteFideId "23750197"]
[BlackFideId "23746327"]
[WhiteElo "1860"]
[BlackElo "1614"]

1. e4 {[%clk 00:20:16]} {[%emt 00:00:05]} e5 {[%clk 00:20:18]} {[%emt
00:00:02]} 2. Nf3 {[%clk 00:20:24]} {[%emt 00:00:01]} Nc6 {[%clk 00:20:26]}
{[%emt 00:00:03]} 3. Bb5 {[%clk 00:20:29]} {[%emt 00:00:05]} a6 {[%clk
00:20:34]} {[%emt 00:00:01]} 4. Bxc6 {[%clk 00:20:34]} {[%emt 00:00:06]} dxc6
{[%clk 00:20:43]} {[%emt 00:00:01]} 5. d4 {[%clk 00:20:43]} exd4 {[%clk
00:20:15]} {[%emt 00:00:39]} 6. Qxd4 {[%clk 00:20:51]} {[%emt 00:00:02]} Qxd4
{[%clk 00:20:04]} {[%emt 00:00:21]} 7. Nxd4 {[%clk 00:20:57]} {[%emt 00:00:03]}
c5 {[%clk 00:20:00]} {[%emt 00:00:15]} 8. Nf3 {[%clk 00:20:56]} {[%emt
00:00:11]} Bg4 {[%clk 00:19:59]} {[%emt 00:00:11]} 9. Ne5 {[%clk 00:20:24]}
{[%emt 00:00:41]} Be6 {[%clk 00:19:15]} {[%emt 00:00:54]} 10. f4 {[%clk
00:19:06]} {[%emt 00:01:28]} f6 {[%clk 00:18:20]} {[%emt 00:01:05]} 11. Nf3
{[%clk 00:19:11]} {[%emt 00:00:04]} O-O-O {[%clk 00:18:12]} {[%emt 00:00:19]}
12. Be3 {[%clk 00:19:09]} {[%emt 00:00:12]} c4 {[%clk 00:18:08]} {[%emt
00:00:14]} 13. Nd4 {[%clk 00:18:46]} {[%emt 00:00:33]} Bf7 {[%clk 00:16:57]}
{[%emt 00:01:22]} 14. Kf2 {[%clk 00:16:56]} {[%emt 00:02:00]} Bc5 {[%clk
00:16:06]} {[%emt 00:01:01]} 15. Nf3 {[%clk 00:16:03]} {[%emt 00:01:03]} Bxe3+
{[%clk 00:15:55]} {[%emt 00:00:20]} 16. Kxe3 {[%clk 00:16:10]} {[%emt
00:00:02]} Ne7 {[%clk 00:16:02]} {[%emt 00:00:04]} 17. Nc3 {[%clk 00:16:16]}
{[%emt 00:00:04]} Nc6 {[%clk 00:15:55]} {[%emt 00:00:17]} 18. a3 {[%emt
00:00:36]} Rhe8 {[%clk 00:15:42]} {[%emt 00:00:21]} 19. Rad1 {[%clk 00:15:44]}
{[%emt 00:00:18]} Bh5 {[%clk 00:13:18]} {[%emt 00:02:34]} 20. Rd5 {[%clk
00:14:56]} {[%emt 00:00:59]} Bf7 {[%clk 00:13:02]} {[%emt 00:00:26]} 21. Rxd8+
{[%clk 00:14:44]} {[%emt 00:00:22]} Rxd8 {[%clk 00:13:10]} {[%emt 00:00:02]} 22.
Rd1 {[%clk 00:14:51]} {[%emt 00:00:03]} Rxd1 {[%clk 00:12:49]} {[%emt
00:00:30]} 23. Nxd1 {[%clk 00:14:59]} {[%emt 00:00:03]} Bh5 {[%emt 00:01:10]}
24. Nc3 {[%clk 00:14:19]} {[%emt 00:00:04]} Bxf3 {[%clk 00:12:24]} {[%emt
00:00:20]} 25. gxf3 {[%clk 00:14:25]} {[%emt 00:00:05]} Kd7 {[%clk 00:12:29]}
{[%emt 00:00:05]} 26. Nd5 {[%clk 00:13:50]} {[%emt 00:00:45]} Kd6 {[%clk
00:12:12]} {[%emt 00:00:27]} 27. h3 {[%clk 00:13:25]} {[%emt 00:00:34]} h6
{[%clk 00:09:50]} {[%emt 00:02:33]} 28. f5 {[%clk 00:12:22]} {[%emt 00:01:13]}
Ne7 {[%clk 00:09:13]} {[%emt 00:00:48]} 29. Nf4 {[%clk 00:12:14]} {[%emt
00:00:16]} c6 {[%clk 00:08:31]} {[%emt 00:00:52]} 30. Nh5 {[%clk 00:12:13]}
{[%emt 00:00:11]} g6 {[%clk 00:08:03]} {[%emt 00:00:39]} 31. fxg6 {[%clk
00:12:08]} {[%emt 00:00:14]} Nxg6 {[%clk 00:08:10]} {[%emt 00:00:03]} 32. Nxf6
{[%clk 00:12:15]} {[%emt 00:00:03]} Ke5 {[%clk 00:07:49]} {[%emt 00:00:31]} 33.
Ng4+ {[%clk 00:12:15]} {[%emt 00:00:10]} Ke6 {[%clk 00:07:31]} {[%emt
00:01:38]} 34. Nxh6 {[%clk 00:12:17]} {[%emt 00:00:04]} c5 {[%clk 00:07:11]}
{[%emt 00:00:31]} 35. Nf5 {[%clk 00:12:14]} {[%emt 00:00:12]} b5 {[%clk
00:07:12]} {[%emt 00:00:10]} 36. h4 {[%clk 00:12:17]} {[%emt 00:00:06]} a5
{[%clk 00:06:35]} {[%emt 00:00:49]} 37. h5 {[%clk 00:12:24]} {[%emt 00:00:03]}
Nh8 {[%clk 00:06:42]} {[%emt 00:00:02]} 38. f4 {[%clk 00:11:12]} {[%emt
00:01:21]} a4 {[%clk 00:04:35]} {[%emt 00:02:18]} 39. c3 {[%clk 00:10:12]}
{[%emt 00:01:10]} b4 {[%clk 00:04:29]} {[%emt 00:00:16]} 40. cxb4 {[%clk
00:10:06]} {[%emt 00:00:15]} cxb4 {[%clk 00:04:36]} {[%emt 00:00:03]} 41. axb4
{[%clk 00:10:15]} c3 {[%clk 00:04:43]} {[%emt 00:00:04]} 42. bxc3 {[%clk
00:09:29]} {[%emt 00:00:56]} a3 {[%clk 00:04:50]} {[%emt 00:00:03]} 43. Nd4+
{[%clk 00:09:36]} {[%emt 00:00:03]} a2 {[%clk 00:04:58]} {[%emt 00:00:02]} 1-0